[Event "*** SCC Grand Prix: Titled Tuesday Blitz"]
[Site "Chess.com"]
[Date "2020.09.29"]
[Round "4"]
[White "oganromchess"]
[Black "Atakishiyev04"]
[Result "0-1"]
[WhiteElo "2447"]
[BlackElo "2694"]
[TimeControl "180+1"]
[EndTime "10:36:23 PDT"]
[Termination "Atakishiyev04 won by resignation"]

1. e4 {[%clk 0:02:52.5]} 1... e5 {[%clk 0:02:59.8]} 2. Nf3 {[%clk 0:02:52.3]}
2... Nc6 {[%clk 0:03:00.4]} 3. d4 {[%clk 0:02:51.3]} 3... exd4 {[%clk
0:02:59.5]} 4. Nxd4 {[%clk 0:02:52.2]} 4... Nf6 {[%clk 0:03:00]} 5. Nxc6 {[%clk
0:02:51.8]} 5... bxc6 {[%clk 0:03:00.9]} 6. e5 {[%clk 0:02:51.8]} 6... Qe7
{[%clk 0:03:00.9]} 7. Qe2 {[%clk 0:02:52.3]} 7... Nd5 {[%clk 0:03:01.3]} 8. h4
{[%clk 0:02:52.3]} 8... g6 {[%clk 0:02:57.3]} 9. c4 {[%clk 0:02:50.9]} 9... Nb6
{[%clk 0:02:57.2]} 10. Bg5 {[%clk 0:02:44.4]} 10... Qe6 {[%clk 0:02:57]} 11. Bf6
{[%clk 0:02:36.3]} 11... Rg8 {[%clk 0:02:56]} 12. h5 {[%clk 0:02:35.7]} 12...
Ba6 {[%clk 0:02:53.8]} 13. hxg6 {[%clk 0:02:33.1]} 13... hxg6 {[%clk 0:02:54.7]}
14. Nd2 {[%clk 0:02:20.8]} 14... Be7 {[%clk 0:02:53.4]} 15. O-O-O {[%clk
0:02:10.8]} 15... O-O-O {[%clk 0:02:52.4]} 16. Rh3 {[%clk 0:01:55.4]} 16... Bxf6
{[%clk 0:02:49.2]} 17. exf6 {[%clk 0:01:53.6]} 17... Qxf6 {[%clk 0:02:49.2]} 18.
Ra3 {[%clk 0:01:51.9]} 18... Bb7 {[%clk 0:02:49.4]} 19. c5 {[%clk 0:01:33.1]}
19... Nd5 {[%clk 0:02:43.9]} 20. Rxa7 {[%clk 0:01:31.9]} 20... Rge8 {[%clk
0:02:26.4]} 21. Qc4 {[%clk 0:00:54.4]} 21... Qxf2 {[%clk 0:02:25.9]} 22. Bd3
{[%clk 0:00:21.9]} 22... Re1 {[%clk 0:02:13.9]} 23. Ne4 {[%clk 0:00:13]} 23...
Rxd1+ {[%clk 0:02:12.3]} 0-1

[Event "*** SCC Grand Prix: Titled Tuesday Blitz"]
[Site "Chess.com"]
[Date "2020.09.29"]
[Round "4"]
[White "OK97"]
[Black "Susal_De_Silva"]
[Result "1-0"]
[WhiteElo "2797"]
[BlackElo "2524"]
[TimeControl "180+1"]
[EndTime "10:36:24 PDT"]
[Termination "OK97 won by resignation"]

1. d4 {[%clk 0:03:00.9]} 1... Nf6 {[%clk 0:02:59.8]} 2. c4 {[%clk 0:03:01.4]}
2... e6 {[%clk 0:02:59.8]} 3. Nc3 {[%clk 0:03:01.7]} 3... Bb4 {[%clk 0:02:59.8]}
4. f3 {[%clk 0:03:02.1]} 4... c5 {[%clk 0:02:59]} 5. d5 {[%clk 0:03:02.2]} 5...
O-O {[%clk 0:02:59.3]} 6. e4 {[%clk 0:03:02]} 6... b5 {[%clk 0:02:59.4]} 7. Nh3
{[%clk 0:03:02.1]} 7... bxc4 {[%clk 0:02:52.9]} 8. Bxc4 {[%clk 0:03:03]} 8...
Nxd5 {[%clk 0:02:47.6]} 9. Bxd5 {[%clk 0:03:03.1]} 9... exd5 {[%clk 0:02:47.9]}
10. Qxd5 {[%clk 0:03:04]} 10... Qf6 {[%clk 0:02:38]} 11. O-O {[%clk 0:02:43.7]}
11... Nc6 {[%clk 0:02:28.3]} 12. Bg5 {[%clk 0:02:34.6]} 12... Qd4+ {[%clk
0:02:25.3]} 13. Qxd4 {[%clk 0:02:34.3]} 13... cxd4 {[%clk 0:02:20.6]} 14. Nd5
{[%clk 0:02:32.7]} 14... Ba6 {[%clk 0:02:14.1]} 15. Rfc1 {[%clk 0:02:25.5]}
15... Rfc8 {[%clk 0:02:09.9]} 16. Rxc6 {[%clk 0:02:10.4]} 16... dxc6 {[%clk
0:01:59.4]} 17. Nxb4 {[%clk 0:02:10.3]} 17... Bc4 {[%clk 0:01:54.6]} 18. b3
{[%clk 0:02:07.5]} 18... Be6 {[%clk 0:01:54.3]} 19. Rc1 {[%clk 0:01:55.5]} 19...
a5 {[%clk 0:01:51.7]} 20. Nxc6 {[%clk 0:01:47.8]} 20... Kf8 {[%clk 0:01:41.6]}
21. Nxd4 {[%clk 0:01:47.3]} 21... Rxc1+ {[%clk 0:01:41.5]} 22. Bxc1 {[%clk
0:01:48.2]} 22... Bxh3 {[%clk 0:01:41.8]} 23. gxh3 {[%clk 0:01:47.8]} 23... Rc8
{[%clk 0:01:40.8]} 24. Bd2 {[%clk 0:01:33.7]} 24... a4 {[%clk 0:01:38.9]} 25.
Kf2 {[%clk 0:01:21.5]} 25... axb3 {[%clk 0:01:32]} 26. axb3 {[%clk 0:01:22.4]}
26... Ke7 {[%clk 0:01:32.7]} 27. b4 {[%clk 0:01:21.6]} 27... Kd6 {[%clk
0:01:30.1]} 28. Nf5+ {[%clk 0:01:13.5]} 28... Kc6 {[%clk 0:01:25.3]} 29. Ne7+
{[%clk 0:01:13.1]} 1-0

[Event "*** SCC Grand Prix: Titled Tuesday Blitz"]
[Site "Chess.com"]
[Date "2020.09.29"]
[Round "4"]
[White "EvgenyRomanov"]
[Black "norwaytoadog"]
[Result "1-0"]
[WhiteElo "2593"]
[BlackElo "2329"]
[TimeControl "180+1"]
[EndTime "10:36:31 PDT"]
[Termination "EvgenyRomanov won on time"]

1. b3 {[%clk 0:03:00.9]} 1... e5 {[%clk 0:02:58.6]} 2. Bb2 {[%clk 0:03:00.7]}
2... Nc6 {[%clk 0:02:58.7]} 3. c4 {[%clk 0:03:00.9]} 3... Nf6 {[%clk 0:02:56.9]}
4. g3 {[%clk 0:03:00.5]} 4... Bc5 {[%clk 0:02:48.1]} 5. Bg2 {[%clk 0:02:58.2]}
5... O-O {[%clk 0:02:43.2]} 6. d3 {[%clk 0:02:55.1]} 6... d5 {[%clk 0:02:39]} 7.
cxd5 {[%clk 0:02:54.6]} 7... Nxd5 {[%clk 0:02:38.7]} 8. Nd2 {[%clk 0:02:53.9]}
8... Bb4 {[%clk 0:02:23.7]} 9. Rc1 {[%clk 0:02:47.5]} 9... Re8 {[%clk
0:02:17.3]} 10. Nf3 {[%clk 0:02:45.6]} 10... a5 {[%clk 0:01:55.3]} 11. a3 {[%clk
0:02:41.2]} 11... Bf8 {[%clk 0:01:53.1]} 12. O-O {[%clk 0:02:39.1]} 12... Nb6
{[%clk 0:01:46.8]} 13. Rxc6 {[%clk 0:02:37.5]} 13... bxc6 {[%clk 0:01:46.5]} 14.
Nxe5 {[%clk 0:02:37.6]} 14... Bxa3 {[%clk 0:01:07.9]} 15. Nxf7 {[%clk
0:02:27.3]} 15... Kxf7 {[%clk 0:00:54.4]} 16. Bxa3 {[%clk 0:02:26.3]} 16... Nd5
{[%clk 0:00:42.5]} 17. Ne4 {[%clk 0:02:22.3]} 17... Bf5 {[%clk 0:00:25.6]} 18.
Qc1 {[%clk 0:02:14.8]} 18... Ra6 {[%clk 0:00:16.1]} 19. Nc5 {[%clk 0:02:10.1]}
19... Rb6 {[%clk 0:00:15.8]} 20. e4 {[%clk 0:02:08.8]} 20... Nb4 {[%clk
0:00:09]} 21. exf5 {[%clk 0:02:05.7]} 21... Nxd3 {[%clk 0:00:06]} 22. Qc4+
{[%clk 0:02:04.6]} 1-0

[Event "*** SCC Grand Prix: Titled Tuesday Blitz"]
[Site "Chess.com"]
[Date "2020.09.29"]
[Round "4"]
[White "grunbergmihai"]
[Black "AndrewMaco"]
[Result "1/2-1/2"]
[WhiteElo "2469"]
[BlackElo "2659"]
[TimeControl "180+1"]
[EndTime "10:36:36 PDT"]
[Termination "Game drawn by repetition"]

1. Nf3 {[%clk 0:03:00.9]} 1... Nf6 {[%clk 0:02:56.4]} 2. c4 {[%clk 0:03:01.8]}
2... e6 {[%clk 0:02:56.1]} 3. g3 {[%clk 0:03:01.8]} 3... b6 {[%clk 0:02:55.5]}
4. Bg2 {[%clk 0:03:02]} 4... Bb7 {[%clk 0:02:55.9]} 5. O-O {[%clk 0:03:02.6]}
5... Be7 {[%clk 0:02:54.9]} 6. d4 {[%clk 0:03:03]} 6... O-O {[%clk 0:02:54.7]}
7. Nc3 {[%clk 0:03:03.4]} 7... Ne4 {[%clk 0:02:54.7]} 8. Bd2 {[%clk 0:03:01.2]}
8... Bf6 {[%clk 0:02:54.2]} 9. Qc2 {[%clk 0:02:57.6]} 9... Nxd2 {[%clk
0:02:52.8]} 10. Qxd2 {[%clk 0:02:55.9]} 10... d6 {[%clk 0:02:52.6]} 11. e4
{[%clk 0:02:55.2]} 11... Nd7 {[%clk 0:02:52.5]} 12. Rad1 {[%clk 0:02:52.9]}
12... g6 {[%clk 0:02:49.3]} 13. Rfe1 {[%clk 0:02:52.1]} 13... Bg7 {[%clk
0:02:47.8]} 14. h4 {[%clk 0:02:51.9]} 14... h5 {[%clk 0:02:44.9]} 15. b4 {[%clk
0:02:45.8]} 15... Qe7 {[%clk 0:02:36.3]} 16. a3 {[%clk 0:02:33.1]} 16... Rad8
{[%clk 0:02:30]} 17. Qe3 {[%clk 0:02:23.8]} 17... c5 {[%clk 0:02:22.3]} 18. d5
{[%clk 0:02:19.8]} 18... exd5 {[%clk 0:02:13.2]} 19. Nxd5 {[%clk 0:02:17.6]}
19... Bxd5 {[%clk 0:02:10.4]} 20. Rxd5 {[%clk 0:02:10.3]} 20... Rfe8 {[%clk
0:02:08.4]} 21. Ng5 {[%clk 0:01:58.5]} 21... Bd4 {[%clk 0:02:02.5]} 22. Rxd4
{[%clk 0:01:55]} 22... cxd4 {[%clk 0:02:03.4]} 23. Qxd4 {[%clk 0:01:55.5]} 23...
Qe5 {[%clk 0:01:59.8]} 24. Qd3 {[%clk 0:01:43.8]} 24... Nf6 {[%clk 0:01:56.2]}
25. Rd1 {[%clk 0:01:38.2]} 25... Kg7 {[%clk 0:01:36.4]} 26. f4 {[%clk
0:01:27.5]} 26... Qb2 {[%clk 0:01:35.7]} 27. Rd2 {[%clk 0:01:24.2]} 27... Qc1+
{[%clk 0:01:30.4]} 28. Rd1 {[%clk 0:01:24]} 28... Qb2 {[%clk 0:01:28.1]} 29. Rd2
{[%clk 0:01:23.9]} 29... Qa1+ {[%clk 0:01:27.2]} 30. Rd1 {[%clk 0:01:23.7]}
30... Qa2 {[%clk 0:01:27]} 31. Rd2 {[%clk 0:01:23.7]} 31... Qa1+ {[%clk
0:01:06.1]} 32. Rd1 {[%clk 0:01:23.1]} 32... Qb2 {[%clk 0:01:03.1]} 1/2-1/2

[Event "*** SCC Grand Prix: Titled Tuesday Blitz"]
[Site "Chess.com"]
[Date "2020.09.29"]
[Round "4"]
[White "PauloCesarCosta_sad"]
[Black "Omk124"]
[Result "1-0"]
[WhiteElo "2311"]
[BlackElo "2428"]
[TimeControl "180+1"]
[EndTime "10:36:36 PDT"]
[Termination "PauloCesarCosta_sad won by resignation"]

1. Nf3 {[%clk 0:03:00.9]} 1... Nf6 {[%clk 0:02:59.2]} 2. c4 {[%clk 0:03:00.9]}
2... g6 {[%clk 0:02:58.6]} 3. g3 {[%clk 0:03:00.7]} 3... Bg7 {[%clk 0:02:58.8]}
4. Bg2 {[%clk 0:03:01.3]} 4... O-O {[%clk 0:02:58.4]} 5. O-O {[%clk 0:03:01.9]}
5... d6 {[%clk 0:02:59]} 6. Nc3 {[%clk 0:03:01.6]} 6... e5 {[%clk 0:02:59.2]} 7.
d4 {[%clk 0:03:02.1]} 7... exd4 {[%clk 0:02:58.5]} 8. Nxd4 {[%clk 0:03:01.7]}
8... Re8 {[%clk 0:02:58.4]} 9. Qc2 {[%clk 0:02:41.8]} 9... c6 {[%clk 0:02:51.5]}
10. Bf4 {[%clk 0:02:36.2]} 10... Nh5 {[%clk 0:02:48.3]} 11. Be3 {[%clk
0:02:30.9]} 11... Nd7 {[%clk 0:02:44.8]} 12. Rad1 {[%clk 0:02:29.9]} 12... Ne5
{[%clk 0:02:43.7]} 13. b3 {[%clk 0:02:23]} 13... Ng4 {[%clk 0:02:41.4]} 14. Bc1
{[%clk 0:02:18.2]} 14... Qe7 {[%clk 0:02:38.9]} 15. Nxc6 {[%clk 0:02:10.1]}
15... bxc6 {[%clk 0:02:35.6]} 16. Bxc6 {[%clk 0:02:11]} 16... Bf5 {[%clk
0:02:35.4]} 17. e4 {[%clk 0:02:00.5]} 17... Be6 {[%clk 0:02:31]} 18. Nb5 {[%clk
0:02:00.6]} 18... Ne5 {[%clk 0:02:26.6]} 19. Bxa8 {[%clk 0:01:54.1]} 19... Rxa8
{[%clk 0:02:25.1]} 20. f4 {[%clk 0:01:53.3]} 20... Nc6 {[%clk 0:02:14.9]} 21.
Ba3 {[%clk 0:01:51.8]} 21... a6 {[%clk 0:02:13.4]} 22. Nxd6 {[%clk 0:01:39.8]}
22... Qa7+ {[%clk 0:02:11.1]} 23. Kg2 {[%clk 0:01:35.2]} 23... Bg4 {[%clk
0:02:09.1]} 24. Rd2 {[%clk 0:01:35]} 24... Qe3 {[%clk 0:02:08.6]} 25. Rd3 {[%clk
0:01:27.4]} 25... Nd4 {[%clk 0:01:40.5]} 26. Qd2 {[%clk 0:01:22.2]} 26... Bf3+
{[%clk 0:01:16.1]} 27. Rxf3 {[%clk 0:01:16.3]} 27... Nxf3 {[%clk 0:01:06.8]} 28.
Qxe3 {[%clk 0:01:11]} 1-0

[Event "*** SCC Grand Prix: Titled Tuesday Blitz"]
[Site "Chess.com"]
[Date "2020.09.29"]
[Round "4"]
[White "jacky72"]
[Black "JiiHart"]
[Result "1-0"]
[WhiteElo "2584"]
[BlackElo "2064"]
[TimeControl "180+1"]
[EndTime "10:36:44 PDT"]
[Termination "jacky72 won by resignation"]

1. e4 {[%clk 0:03:00.9]} 1... c5 {[%clk 0:03:00]} 2. Nc3 {[%clk 0:03:00.5]} 2...
Nc6 {[%clk 0:03:00.1]} 3. g3 {[%clk 0:03:01.4]} 3... g6 {[%clk 0:03:00.5]} 4.
Bg2 {[%clk 0:03:02.3]} 4... Bg7 {[%clk 0:03:01.2]} 5. f4 {[%clk 0:03:02.7]} 5...
d6 {[%clk 0:02:54.7]} 6. d3 {[%clk 0:03:03]} 6... e6 {[%clk 0:02:49.8]} 7. Nh3
{[%clk 0:03:02.8]} 7... Nge7 {[%clk 0:02:49.8]} 8. O-O {[%clk 0:03:01.5]} 8...
f5 {[%clk 0:02:49.6]} 9. Be3 {[%clk 0:02:56.3]} 9... O-O {[%clk 0:02:46.4]} 10.
Qd2 {[%clk 0:02:54.5]} 10... Rb8 {[%clk 0:02:43.9]} 11. Rae1 {[%clk 0:02:53.6]}
11... b5 {[%clk 0:02:40.4]} 12. Kh1 {[%clk 0:02:48.9]} 12... h6 {[%clk
0:02:38.5]} 13. Nd1 {[%clk 0:02:45.9]} 13... Kh7 {[%clk 0:02:31.8]} 14. e5
{[%clk 0:02:44.3]} 14... dxe5 {[%clk 0:02:22.6]} 15. Bxc5 {[%clk 0:02:43.6]}
15... exf4 {[%clk 0:02:19.6]} 16. Nxf4 {[%clk 0:02:27]} 16... e5 {[%clk
0:02:10.3]} 17. Nh3 {[%clk 0:02:26.5]} 17... Bb7 {[%clk 0:02:00.4]} 18. Nc3
{[%clk 0:02:13.6]} 18... a6 {[%clk 0:01:58]} 19. Qf2 {[%clk 0:02:08.9]} 19...
Re8 {[%clk 0:01:30.8]} 20. Qe3 {[%clk 0:01:54.8]} 20... Nd4 {[%clk 0:01:26]} 21.
Qf2 {[%clk 0:01:54.8]} 21... Bxg2+ {[%clk 0:01:22.2]} 22. Qxg2 {[%clk
0:01:55.7]} 22... Rc8 {[%clk 0:01:14.7]} 23. Bxd4 {[%clk 0:01:53.4]} 23... exd4
{[%clk 0:01:08.4]} 24. Nd1 {[%clk 0:01:52.7]} 24... Qd5 {[%clk 0:01:04.6]} 25.
Re2 {[%clk 0:01:48.3]} 25... Qxg2+ {[%clk 0:01:02.3]} 26. Kxg2 {[%clk
0:01:49.2]} 26... Nd5 {[%clk 0:01:02.2]} 27. Rfe1 {[%clk 0:01:49.6]} 27... Ne3+
{[%clk 0:00:49.4]} 28. Nxe3 {[%clk 0:01:49.2]} 28... dxe3 {[%clk 0:00:38.9]} 29.
c3 {[%clk 0:01:49.1]} 29... g5 {[%clk 0:00:34.4]} 30. Rxe3 {[%clk 0:01:47.2]}
30... b4 {[%clk 0:00:32.3]} 31. Rxe8 {[%clk 0:01:46.8]} 1-0

[Event "*** SCC Grand Prix: Titled Tuesday Blitz"]
[Site "Chess.com"]
[Date "2020.09.29"]
[Round "4"]
[White "Chamal_Gedgafov"]
[Black "ural58"]
[Result "1-0"]
[WhiteElo "2145"]
[BlackElo "2356"]
[TimeControl "180+1"]
[EndTime "10:36:44 PDT"]
[Termination "Chamal_Gedgafov won by resignation"]

1. d4 {[%clk 0:03:00.9]} 1... d5 {[%clk 0:02:40.4]} 2. c4 {[%clk 0:02:59]} 2...
e5 {[%clk 0:02:40.1]} 3. dxe5 {[%clk 0:02:58.1]} 3... d4 {[%clk 0:02:39.7]} 4.
Nf3 {[%clk 0:02:57.8]} 4... Nc6 {[%clk 0:02:29.8]} 5. g3 {[%clk 0:02:58.7]} 5...
Nge7 {[%clk 0:02:29]} 6. Bg2 {[%clk 0:02:58]} 6... Ng6 {[%clk 0:02:29.3]} 7. Qa4
{[%clk 0:02:57.1]} 7... Qd7 {[%clk 0:02:28.1]} 8. O-O {[%clk 0:02:56.2]} 8...
Ngxe5 {[%clk 0:02:25.6]} 9. Rd1 {[%clk 0:02:50.2]} 9... Nxf3+ {[%clk 0:02:23.9]}
10. exf3 {[%clk 0:02:45.4]} 10... Be7 {[%clk 0:02:23.5]} 11. Nc3 {[%clk
0:02:44.3]} 11... O-O {[%clk 0:02:08.1]} 12. Nb5 {[%clk 0:02:40.7]} 12... Bc5
{[%clk 0:02:00.8]} 13. Bf4 {[%clk 0:02:29.4]} 13... Bb6 {[%clk 0:01:59.9]} 14.
b4 {[%clk 0:02:05.7]} 14... a6 {[%clk 0:01:45.9]} 15. c5 {[%clk 0:02:01.2]}
15... Ne7 {[%clk 0:00:57.2]} 16. cxb6 {[%clk 0:01:41.3]} 16... Qxb5 {[%clk
0:00:56.8]} 17. Qxb5 {[%clk 0:01:37.9]} 17... axb5 {[%clk 0:00:57.7]} 18. bxc7
{[%clk 0:01:33.2]} 18... Nc6 {[%clk 0:00:49.5]} 19. Bd6 {[%clk 0:01:20.8]} 19...
Re8 {[%clk 0:00:49.4]} 20. f4 {[%clk 0:01:19.8]} 20... Re6 {[%clk 0:00:49.5]}
21. Bc5 {[%clk 0:01:16.5]} 21... Re7 {[%clk 0:00:47.5]} 22. Bxc6 {[%clk
0:01:09.7]} 22... bxc6 {[%clk 0:00:47.4]} 23. Bxe7 {[%clk 0:01:09.1]} 1-0

[Event "*** SCC Grand Prix: Titled Tuesday Blitz"]
[Site "Chess.com"]
[Date "2020.09.29"]
[Round "4"]
[White "freshfoodcompany"]
[Black "Larina_Marija"]
[Result "1-0"]
[WhiteElo "2396"]
[BlackElo "2194"]
[TimeControl "180+1"]
[EndTime "10:36:50 PDT"]
[Termination "freshfoodcompany won by resignation"]

1. d4 {[%clk 0:03:00.9]} 1... f5 {[%clk 0:02:59.7]} 2. Nf3 {[%clk 0:03:00.4]}
2... Nf6 {[%clk 0:02:59.7]} 3. g3 {[%clk 0:03:00.7]} 3... g6 {[%clk 0:02:59.5]}
4. Bg2 {[%clk 0:03:01.1]} 4... Bg7 {[%clk 0:03:00.1]} 5. O-O {[%clk 0:03:01.5]}
5... O-O {[%clk 0:03:00.6]} 6. b3 {[%clk 0:03:01.9]} 6... d6 {[%clk 0:03:00.1]}
7. Bb2 {[%clk 0:03:02.3]} 7... h6 {[%clk 0:02:41]} 8. c4 {[%clk 0:03:01.8]} 8...
g5 {[%clk 0:02:41]} 9. Nc3 {[%clk 0:03:00]} 9... c6 {[%clk 0:02:40.5]} 10. Qc2
{[%clk 0:02:58.8]} 10... Qe8 {[%clk 0:02:38.3]} 11. e4 {[%clk 0:02:57.1]} 11...
fxe4 {[%clk 0:02:27.1]} 12. Nxe4 {[%clk 0:02:56]} 12... Nxe4 {[%clk 0:02:21.5]}
13. Qxe4 {[%clk 0:02:56.9]} 13... Bf5 {[%clk 0:02:22]} 14. Qe2 {[%clk
0:02:53.4]} 14... e6 {[%clk 0:02:05.5]} 15. Rfe1 {[%clk 0:02:50.6]} 15... Qg6
{[%clk 0:02:04.3]} 16. Rad1 {[%clk 0:02:43.9]} 16... Nd7 {[%clk 0:02:03]} 17.
Nd2 {[%clk 0:02:42.2]} 17... Rae8 {[%clk 0:01:59.4]} 18. Ne4 {[%clk 0:02:40.6]}
18... Bxe4 {[%clk 0:01:30.7]} 19. Bxe4 {[%clk 0:02:38.3]} 19... Qf6 {[%clk
0:01:30.8]} 20. Bg2 {[%clk 0:02:35.4]} 20... e5 {[%clk 0:01:19.4]} 21. d5 {[%clk
0:02:20.7]} 21... c5 {[%clk 0:01:16.8]} 22. Bc3 {[%clk 0:02:18.2]} 22... Qf7
{[%clk 0:01:06.9]} 23. Bh3 {[%clk 0:02:16.8]} 23... Kh8 {[%clk 0:01:00.8]} 24.
Be6 {[%clk 0:02:15]} 24... Qe7 {[%clk 0:01:00.6]} 25. Bh3 {[%clk 0:02:03.3]}
25... Nf6 {[%clk 0:01:00.1]} 26. Bg2 {[%clk 0:02:00.8]} 26... g4 {[%clk
0:00:52.6]} 27. a3 {[%clk 0:01:57.8]} 27... Qf7 {[%clk 0:00:47.3]} 28. b4 {[%clk
0:01:56.1]} 28... b6 {[%clk 0:00:47.2]} 29. a4 {[%clk 0:01:44.4]} 29... Qh5
{[%clk 0:00:45.7]} 30. a5 {[%clk 0:01:41.9]} 30... Nh7 {[%clk 0:00:44.3]} 31. h4
{[%clk 0:01:29.7]} 31... gxh3 {[%clk 0:00:42.7]} 32. Qxh5 {[%clk 0:01:28.4]} 1-0

[Event "*** SCC Grand Prix: Titled Tuesday Blitz"]
[Site "Chess.com"]
[Date "2020.09.29"]
[Round "4"]
[White "Vugar_Manafov"]
[Black "Brave_spirit12"]
[Result "0-1"]
[WhiteElo "2670"]
[BlackElo "2457"]
[TimeControl "180+1"]
[EndTime "10:36:51 PDT"]
[Termination "Brave_spirit12 won on time"]

1. Nf3 {[%clk 0:02:58]} 1... d5 {[%clk 0:02:57.7]} 2. g3 {[%clk 0:02:55.1]} 2...
c6 {[%clk 0:02:57.9]} 3. Bg2 {[%clk 0:02:53.6]} 3... Nf6 {[%clk 0:02:58.3]} 4.
O-O {[%clk 0:02:51.8]} 4... g6 {[%clk 0:02:58.8]} 5. d3 {[%clk 0:02:48.8]} 5...
Bg7 {[%clk 0:02:59.7]} 6. Nc3 {[%clk 0:02:47.1]} 6... O-O {[%clk 0:03:00.6]} 7.
e4 {[%clk 0:02:45]} 7... dxe4 {[%clk 0:02:51.2]} 8. dxe4 {[%clk 0:02:42.9]} 8...
Qa5 {[%clk 0:02:49]} 9. h3 {[%clk 0:02:41.3]} 9... Be6 {[%clk 0:02:43.4]} 10.
Bf4 {[%clk 0:02:37.2]} 10... Bc4 {[%clk 0:02:42.3]} 11. Re1 {[%clk 0:02:35.7]}
11... Rd8 {[%clk 0:02:40.4]} 12. Nd2 {[%clk 0:02:33.7]} 12... Ba6 {[%clk
0:02:29.5]} 13. Qf3 {[%clk 0:02:29.3]} 13... e5 {[%clk 0:02:24.8]} 14. Bg5
{[%clk 0:02:25.2]} 14... Nbd7 {[%clk 0:02:21.8]} 15. Rad1 {[%clk 0:02:18.4]}
15... h6 {[%clk 0:02:20.6]} 16. Nb3 {[%clk 0:02:13.4]} 16... Qb6 {[%clk
0:02:14.3]} 17. Be3 {[%clk 0:02:10.1]} 17... Qc7 {[%clk 0:02:09.2]} 18. h4
{[%clk 0:02:09.2]} 18... Bc4 {[%clk 0:02:02.3]} 19. Bh3 {[%clk 0:02:06.8]} 19...
Nf8 {[%clk 0:01:58]} 20. Bxh6 {[%clk 0:01:59.4]} 20... Bxh6 {[%clk 0:01:49.1]}
21. Qf5 {[%clk 0:01:58.1]} 21... gxf5 {[%clk 0:01:48.3]} 0-1

[Event "*** SCC Grand Prix: Titled Tuesday Blitz"]
[Site "Chess.com"]
[Date "2020.09.29"]
[Round "4"]
[White "Smirnov_Pavel"]
[Black "TigrVShlyape"]
[Result "1/2-1/2"]
[WhiteElo "2686"]
[BlackElo "2847"]
[TimeControl "180+1"]
[EndTime "10:36:52 PDT"]
[Termination "Game drawn by agreement"]

1. d4 {[%clk 0:03:00.4]} 1... d5 {[%clk 0:02:51.1]} 2. c4 {[%clk 0:02:59.5]}
2... c6 {[%clk 0:02:51.1]} 3. Nf3 {[%clk 0:02:58.9]} 3... Nf6 {[%clk 0:02:50.6]}
4. Nc3 {[%clk 0:02:59.4]} 4... a6 {[%clk 0:02:50.5]} 5. e3 {[%clk 0:02:58.4]}
5... Bf5 {[%clk 0:02:48.9]} 6. Ne5 {[%clk 0:02:54.6]} 6... Nbd7 {[%clk 0:02:37]}
7. Qb3 {[%clk 0:02:53.2]} 7... Ra7 {[%clk 0:02:08.5]} 8. cxd5 {[%clk 0:02:48.5]}
8... cxd5 {[%clk 0:01:52]} 9. Qa4 {[%clk 0:02:21.6]} 9... e6 {[%clk 0:01:42.2]}
10. Be2 {[%clk 0:02:19.8]} 10... h6 {[%clk 0:01:37.5]} 11. O-O {[%clk 0:02:08]}
11... Be7 {[%clk 0:01:37.5]} 12. Bb5 {[%clk 0:01:38]} 12... Ra8 {[%clk
0:01:35.6]} 13. Nxd7 {[%clk 0:01:03.9]} 13... Nxd7 {[%clk 0:01:34]} 14. Be2
{[%clk 0:01:04.8]} 14... O-O {[%clk 0:01:32]} 15. Bd2 {[%clk 0:01:05.3]} 15...
b5 {[%clk 0:01:30.4]} 16. Qb3 {[%clk 0:01:04.4]} 16... Nb6 {[%clk 0:01:30.3]}
17. Rfc1 {[%clk 0:01:05]} 17... Nc4 {[%clk 0:01:29.1]} 18. Be1 {[%clk
0:01:05.1]} 18... Rb8 {[%clk 0:01:24.7]} 19. a4 {[%clk 0:01:01]} 1/2-1/2

[Event "*** SCC Grand Prix: Titled Tuesday Blitz"]
[Site "Chess.com"]
[Date "2020.09.29"]
[Round "4"]
[White "IMDT02"]
[Black "Andreikka"]
[Result "0-1"]
[WhiteElo "2542"]
[BlackElo "2845"]
[TimeControl "180+1"]
[EndTime "10:36:59 PDT"]
[Termination "Andreikka won by resignation"]

1. d4 {[%clk 0:02:55.8]} 1... Nf6 {[%clk 0:02:58.7]} 2. c4 {[%clk 0:02:56.1]}
2... e6 {[%clk 0:02:58]} 3. Nc3 {[%clk 0:02:56.6]} 3... Bb4 {[%clk 0:02:57.3]}
4. e3 {[%clk 0:02:56.2]} 4... b6 {[%clk 0:02:55.9]} 5. Ne2 {[%clk 0:02:54.2]}
5... Bb7 {[%clk 0:02:55]} 6. a3 {[%clk 0:02:53.6]} 6... Be7 {[%clk 0:02:38.7]}
7. d5 {[%clk 0:02:53.9]} 7... a5 {[%clk 0:02:22.5]} 8. g3 {[%clk 0:02:53.9]}
8... Na6 {[%clk 0:02:20.3]} 9. Bg2 {[%clk 0:02:53.7]} 9... Nc5 {[%clk
0:02:20.9]} 10. b3 {[%clk 0:02:50]} 10... O-O {[%clk 0:02:19.7]} 11. O-O {[%clk
0:02:49.8]} 11... Re8 {[%clk 0:02:19.4]} 12. Rb1 {[%clk 0:02:49.6]} 12... exd5
{[%clk 0:02:14.2]} 13. b4 {[%clk 0:02:46.2]} 13... axb4 {[%clk 0:02:13.1]} 14.
axb4 {[%clk 0:02:47.1]} 14... Na6 {[%clk 0:02:07.4]} 15. b5 {[%clk 0:02:09.7]}
15... Nc5 {[%clk 0:01:55.5]} 16. Nxd5 {[%clk 0:02:10.1]} 16... Nxd5 {[%clk
0:01:45.6]} 17. Bxd5 {[%clk 0:02:11]} 17... Bxd5 {[%clk 0:01:22.8]} 18. Qxd5
{[%clk 0:02:11.9]} 18... Bf6 {[%clk 0:01:22.3]} 19. Bb2 {[%clk 0:02:10.8]} 19...
Ra2 {[%clk 0:01:22.1]} 20. Bxf6 {[%clk 0:02:04.6]} 20... Qxf6 {[%clk 0:01:23]}
21. Nf4 {[%clk 0:02:05]} 21... h6 {[%clk 0:01:22]} 22. Rfd1 {[%clk 0:01:56.2]}
22... g5 {[%clk 0:01:16.1]} 23. Nh3 {[%clk 0:01:34.9]} 23... Re5 {[%clk
0:01:16.2]} 24. Qd4 {[%clk 0:01:30.7]} 24... Ne4 {[%clk 0:01:13.1]} 25. Rb2
{[%clk 0:01:25]} 25... Rxb2 {[%clk 0:01:04.1]} 26. Qxb2 {[%clk 0:01:25.9]} 26...
Rd5 {[%clk 0:00:57.7]} 27. Qb1 {[%clk 0:01:18.8]} 27... Nc3 {[%clk 0:00:42.5]}
28. cxd5 {[%clk 0:01:12.6]} 28... Nxb1 {[%clk 0:00:40.6]} 29. Rxb1 {[%clk
0:01:13.5]} 29... Qf5 {[%clk 0:00:41.4]} 0-1